Cogmind - Beta 15 @@@ ROGUE MODE // 2025.06.21 @ 14:54:22 Player: Nopana Result: Destroyed by H-55 Commando with Gauss Rifle Performance ------------- Evolutions (2) 1000 Regions Visited (4) 800 Robots Destroyed (24) 120 Value Destroyed (499) 499 Prototype IDs (0) 0 Alien Tech Used (0) 0 Bonus (200) 200 TOTAL SCORE: 2619 Bonus ------- Entered Garrisons 200 Cogmind --------- Core Integrity 0/550 Matter 300/300 Energy 100/100 System Corruption 0% Temperature Cool (0) Movement Core (200) Ox3 Location -8/Garrison Parts ------- > --- POWER (1) -------- (None) > --- PROPULSION (3) --- (None) > --- UTILITY (3) ------ Medium Storage Unit > --- WEAPON (4) ------- (None) > --- INVENTORY (10) --- Ion Engine Ion Engine Subdweller Power Source Small Storage Unit Peak State ------------ > --- POWER ------------ Light Ion Engine > --- PROPULSION ------- Light Treads Light Treads > --- UTILITY ---------- Medium Storage Unit Seismic Detector > --- WEAPON ----------- Subdweller Beam Cannon Subdweller Machine Gun Subdweller Machine Gun > --- INVENTORY -------- Ion Engine Ion Engine Subdweller Power Source Makeshift Power Source Small Storage Unit Mining Claw [Rating: 12] Favorites ----------- Power Light Ion Engine Engine Light Ion Engine Propulsion Aluminum Leg Treads Light Treads Leg Aluminum Leg Utility Medium Storage Unit Device Seismic Detector Storage Medium Storage Unit Weapon Subdweller Machine Gun Energy Gun EM Pulse Gun Energy Cannon Beam Cannon Ballistic Gun Subdweller Machine Gun Slashing Weapon Mining Claw Build | -11 -10 -10 -8 -8 ------- Run | Yrd Mat Sub Mat Gar Slots Evolved 4 | . . . 4 . Power . | . . . . . Propulsion 1 | . . . 1 . Utility 1 | . . . 1 . Weapon 2 | . . . 2 . Parts Attached 22 | 9 3 5 4 1 Power 4 | 1 1 1 1 . Engine 4 | 1 1 1 1 . Core . | . . . . . Reactor . | . . . . . Propulsion 5 | 4 . . . 1 Treads 3 | 2 . . . 1 Leg 2 | 2 . . . . Wheel . | . . . . . Hover . | . . . . . Flight . | . . . . . Utility 3 | 2 1 . . . Device 1 | 1 . . . . Storage 2 | 1 1 . . . Processor . | . . . . . Hackware . | . . . . . Protection . | . . . . . Artifact . | . . . . . Weapon 10 | 2 1 4 3 . Energy Gun 2 | 1 . . 1 . Energy Cannon 3 | . 1 1 1 . Ballistic Gun 4 | 1 . 2 1 . Ballistic Cannon . | . . . . . Launcher . | . . . . . Special Weapon . | . . . . . Impact Weapon . | . . . . . Slashing Weapon 1 | . . 1 . . Piercing Weapon . | . . . . . Special Melee Weapon . | . . . . . Unidentified Prototypes . | . . . . . Parts Lost 17 | . . 6 4 7 Power 3 | . . 1 1 1 Propulsion 5 | . . 2 1 2 Utility 1 | . . . 1 . Weapon 8 | . . 3 1 4 Highest Loss Streak 6 | . . 3 2 6 To Critical Strikes . | . . . . . Average Backups 7 | 6 8 7 6 5 Power 3 | 1 3 3 3 3 Propulsion 1 | 3 2 1 . . Utility 1 | 1 1 1 1 1 Weapon 1 | 1 1 1 1 . Tool/Special . | . . . . . Unused Backups 6 | . 3 1 . 2 Power 2 | . . . . 2 Propulsion . | . . . . . Utility 3 | . 2 1 . . Weapon 1 | . 1 . . . Tool/Special . | . . . . . Average Slot Usage (%) 84 | . 100 97 55 44 Engine 10 | . 14 12 4 8 Treads 8 | . . 7 16 8 Leg 15 | . 28 20 . . Device 10 | . 14 14 4 . Storage 12 | . 14 14 9 9 Energy Gun 5 | . 14 4 3 2 Energy Cannon 8 | . 12 11 . . Ballistic Gun 11 | . 1 11 17 15 Peak Build Rating 12 | 7 7 10 12 12 Average Rating 8 | 4 6 8 9 9 On Entrance 7 | . 7 7 10 12 Naked Turns . | . . . . . Heaviest Build 30 | 14 19 22 30 22 Greatest Support 40 | 20 20 40 40 40 Greatest Overweight (x) 4 | 4 . 1 1 3 Average Overweight (x) . | 1 . . . . Largest Inventory Capacity 10 | 8 10 10 10 10 Average Capacity 9 | 7 9 10 10 10 Most Carried 10 | 8 8 10 8 6 Average Carried 7 | 6 7 7 6 5 Final Capacity 10 | 8 10 10 10 10 Final Carried 8 | 8 8 7 6 4 Class Distribution -------------------- 67% | Mutant 19% | Scavenger-Mutant 10% | Gunner Dominant Class ---------------- Mutant | -10/Materials Mutant | -10/Subcaves Gunner | -8/Materials Mutant | -8/Garrison Resources | -11 -10 -10 -8 -8 ----------- Run | Yrd Mat Sub Mat Gar Matter Collected 535 | 291 45 87 108 4 Remotely . | . . . . . Salvage Created 669 | 166 89 184 230 . Parts 57 | 12 10 16 19 . Haulers Intercepted . | . . . . . Recyclers Shooed . | . . . . . Parts Field Recycled . | . . . . . Retrieved Matter . | . . . . . Parts Self-Destructed . | . . . . . Prevented . | . . . . . Kills | -11 -10 -10 -8 -8 ------- Run | Yrd Mat Sub Mat Gar Combat Hostiles Destroyed 19 | . 5 5 9 . Guns 13 | . 1 3 9 . Cannons 6 | . 4 2 . . Classes Destroyed 8 | 3 1 1 3 . Worker 2 | 2 . . . . Tunneler 1 | 1 . . . . Recycler 1 | 1 . . . . Watcher 1 | . . . 1 . Swarmer 11 | . 5 . 6 . Grunt 2 | . . . 2 . Sentry 1 | . . . 1 . Subdweller 5 | . . 5 . . Best Kill Streak 6 | 1 3 2 6 . Combat Bots Only 6 | . 3 2 6 . Max Kills in Single Turn 2 | 1 2 1 2 . Gunslinging 1 | . . . 1 . Exploded . | . . . . . Melee . | . . . . . Uniques/NPCs Destroyed . | . . . . . Combat | -11 -10 -10 -8 -8 -------- Run | Yrd Mat Sub Mat Gar Hostile Shots Fired 218 | . 8 46 69 95 Missed 71 | . 4 14 26 27 Hits 147 | . 4 32 43 68 Projectile 147 | . 4 32 43 68 Damage Taken 2204 | . 55 825 370 954 Core 732 | . 45 131 66 490 Absorbed by Shields . | . . . . . Core Remaining (%) 64 | 100 . 29 . . Volleys Fired 78 | 16 5 26 23 8 Largest 3 | 2 2 2 3 2 Hottest 140 | 60 100 120 140 50 Shots Fired 147 | 22 10 48 56 11 Gun 108 | 22 5 19 51 11 Cannon 39 | . 5 29 5 . Launcher . | . . . . . Special . | . . . . . Kinetic 88 | 16 . 18 43 11 Thermal 39 | . 5 29 5 . Explosive . | . . . . . Electromagnetic 20 | 6 5 1 8 . Robot Hit Streak 24 | 4 3 23 24 7 Robot Miss Streak 4 | 3 1 3 4 2 Penetration Max . | . . . . . Secondary Targets 3 | . . . 3 . Max Gunslinging Chain 1 | . . . 1 . Shots Hit Robots 91 | 10 6 37 29 9 Core Hits 39 | 6 5 9 14 5 Critical Kills . | . . . . . Critical Parts Destroyed 1 | 1 . . . . Critical Strikes 1 | 1 . . . . Destroy 1 | 1 . . . . Melee Attacks 5 | . . 4 . 1 Impact . | . . . . . Slashing 5 | . . 4 . 1 Piercing . | . . . . . Sneak Attacks . | . . . . . Combat Hostiles . | . . . . . Follow-up Attacks . | . . . . . Damage Inflicted 1679 | 104 144 702 635 94 Guns 1128 | 104 36 366 551 71 Cannons 506 | . 86 336 84 . Explosions 22 | . 22 . . . Melee 23 | . . . . 23 Ramming . | . . . . . Kinetic 940 | 51 . 366 452 71 Thermal 528 | . 108 336 84 . Explosive . | . . . . . Electromagnetic 188 | 53 36 . 99 . Impact . | . . . . . Slashing 23 | . . . . 23 Piercing . | . . . . . Highest Corruption . | . . . . . Average Corruption . | . . . . . Corruption Purged . | . . . . . Corruption Blocked . | . . . . . Overload Shots . | . . . . . Overflow Damage . | . . . . . Projectiles . | . . . . . Explosions . | . . . . . Melee . | . . . . . Knockbacks . | . . . . . Impact . | . . . . . Kinetic . | . . . . . Secondary . | . . . . . Self-Inflicted Damage . | . . . . . Shots . | . . . . . Rammed . | . . . . . Targets Rammed . | . . . . . Kicked . | . . . . . Crushed . | . . . . . Highest Temperature 177 | 20 78 . 177 8 Average Temperature 42 | 14 36 . 56 6 Received Heat Transfer 93 | . . 75 18 . Siege Activations . | . . . . . Martial Activations . | . . . . . Shielding Activations . | . . . . . Robots Disrupted . | . . . . . Combat Hostiles . | . . . . . Robots Corrupted . | . . . . . Combat Hostiles . | . . . . . Parts Fried . | . . . . . Impact Corruptions . | . . . . . Robots Melted . | . . . . . Combat Hostiles . | . . . . . Parts Melted . | . . . . . Heat Transferred 1049 | . 235 703 111 . Parts Sabotaged . | . . . . . Parts Stolen . | . . . . . Parts Stripped . | . . . . . Power Chain Reactions 1 | . 1 . . . Alert | -11 -10 -10 -8 -8 ------- Run | Yrd Mat Sub Mat Gar Maximum Alert Level . | . . . . . Low Security (%) 100 | 100 100 . 100 100 Level 1 . | . . . . . Level 2 . | . . . . . Level 3 . | . . . . . Level 4 . | . . . . . Level 5 . | . . . . . High Security . | . . . . . Max Security . | . . . . . Peak Influence 105 | 5 105 . 100 52 Initial 52 | . . . . 52 Average 36 | 1 46 . 48 39 Influence Increases 394 | 20 139 . 235 . Destroy 0b10 Robot/C 280 | . 100 . 180 . Destroy 0b10 Robot/NC 25 | 20 . . 5 . Destroy Leader 52 | . 20 . 32 . Disable Machine 15 | . . . 15 . Destroy Structure 7 | . 4 . 3 . Lose Combat Pursuer 15 | . 15 . . . Influence Decreases 394 | 20 70 69 155 80 Entered New Map 62 | . . 34 . 28 Time Decay 240 | 20 70 35 115 . Lost Part 92 | . . . 40 52 Squads Dispatched 1 | . . . 1 . Investigation . | . . . . . Extermination . | . . . . . Reinforcement 1 | . . . 1 . Assault . | . . . . . Garrison . | . . . . . Intercept . | . . . . . Searches Triggered . | . . . . . Construction Impeded . | . . . . . Haulers Reinforced . | . . . . . Active Scanning Responses . | . . . . . Cargo Convoy Interrupts . | . . . . . Stealth | -11 -10 -10 -8 -8 --------- Run | Yrd Mat Sub Mat Gar Distress Signals 3 | . 1 . 2 . Communications Jammed . | . . . . . Distress Signals . | . . . . . Times Spotted 39 | . 8 8 12 11 Peak Tracking Total 11 | . 5 2 5 11 Tactical Retreats 2 | . 1 1 . . Traps | -11 -10 -10 -8 -8 ------- Run | Yrd Mat Sub Mat Gar Traps Triggered 4 | . 1 2 . 1 Indirectly . | . . . . . Trap Hack Attempts . | . . . . . Triggered . | . . . . . Disarmed . | . . . . . Reprogrammed . | . . . . . Reused . | . . . . . Traps Extracted . | . . . . . Installed . | . . . . . Triggered . | . . . . . Machines | -11 -10 -10 -8 -8 ---------- Run | Yrd Mat Sub Mat Gar Machines Disabled 1 | . . . 1 . Max in Single Turn 1 | . . . 1 . Machines Repaired . | . . . . . Machines Dismantled . | . . . . . Machines Sabotaged . | . . . . . Overloaded Fab Kills . | . . . . . Hacking | -11 -10 -10 -8 -8 --------- Run | Yrd Mat Sub Mat Gar Machines Accessed 2 | . 1 . 1 . Terminals 1 | . 1 . . . Fabricators . | . . . . . Repair Stations . | . . . . . Recycling Units . | . . . . . Scanalyzers . | . . . . . Garrison Access 1 | . . . 1 . Total Hacks 3 | . 2 . 1 . Successful 1 | . . . 1 . Failed 2 | . 2 . . . Catastrophic . | . . . . . Database Lockouts . | . . . . . Manual . | . . . . . Terminals 2 | . 2 . . . Fabricators . | . . . . . Repair Stations . | . . . . . Recycling Units . | . . . . . Scanalyzers . | . . . . . Garrison Access 1 | . . . 1 . Terminal Hacks . | . . . . . Fabricator Hacks . | . . . . . Repair Station Hacks . | . . . . . Recycling Unit Hacks . | . . . . . Scanalyzer . | . . . . . Garrison Access Hacks 1 | . . . 1 . Unlock Access 1 | . . . 1 . Unauthorized Hacks . | . . . . . Terminals . | . . . . . Fabricators . | . . . . . Repair Stations . | . . . . . Recycling Units . | . . . . . Scanalyzers . | . . . . . Garrison Access . | . . . . . Data Cores Recovered . | . . . . . Used . | . . . . . Hacking Detections 1 | . 1 . . . Full Trace Events . | . . . . . Feedback Events . | . . . . . Feedback Blocked . | . . . . . Robot Schematics Acquired . | . . . . . Robots Built . | . . . . . Authchips . | . . . . . Time . | . . . . . Total Robot Build Rating . | . . . . . Part Schematics Acquired . | . . . . . Parts Built . | . . . . . Authchips . | . . . . . Time . | . . . . . Total Part Build Rating . | . . . . . Parts Repaired . | . . . . . Time . | . . . . . Parts Recycled . | . . . . . Recycled Matter . | . . . . . Retrieved Matter . | . . . . . Retrieved Components . | . . . . . Parts Scanalyzed . | . . . . . Part Schematics Acquired . | . . . . . Parts Damaged . | . . . . . Bothacking | -11 -10 -10 -8 -8 ------------ Run | Yrd Mat Sub Mat Gar Used RIF Installer . | . . . . . Robots Hacked . | . . . . . Non-combat . | . . . . . Combat . | . . . . . Robot Hacks Applied . | . . . . . Relay Couplers Released . | . . . . . Fabnet Peak Effective % . | . . . . . Robots Rewired . | . . . . . Allies Hacked . | . . . . . Hacks Repelled . | . . . . . Allies | -11 -10 -10 -8 -8 -------- Run | Yrd Mat Sub Mat Gar Total Allies . | . . . . . Largest Group . | . . . . . Highest-Rated Group . | . . . . . Highest-Rated Ally . | . . . . . Total Orders . | . . . . . Ally Attacks . | . . . . . Total Damage . | . . . . . Kills . | . . . . . Allies Corrupted . | . . . . . Allies Melted . | . . . . . Intel | -11 -10 -10 -8 -8 ------- Run | Yrd Mat Sub Mat Gar Active Infowar (turns) 1294 | 64 208 887 135 . Seismic 1294 | 64 208 887 135 . Robot Analysis Total . | . . . . . Derelict Logs Recovered 1 | . . 1 . . Drone Launches . | . . . . . Drone Recoveries . | . . . . . Exploration | -11 -10 -10 -8 -8 ------------- Run | Yrd Mat Sub Mat Gar Turns Passed 1731 | 165 208 887 298 173 Spaces Moved 887 | 60 109 529 106 83 Core 51 | 45 . . . 6 Treads 312 | . . 129 106 77 Legs 524 | 15 109 400 . . Wheels . | . . . . . Hover . | . . . . . Flight . | . . . . . Fastest Speed 50 | 50 120 120 160 160 Average Speed 150 | 166 120 146 172 181 Slowest Speed 250 | 250 120 190 240 240 Overloaded Moves . | . . . . . Propulsion Burnouts . | . . . . . Robots Hopped . | . . . . . Potential Cave-ins . | . . . . . Cave-ins Triggered . | . . . . . Exploration Rate (%) 19 | 5 24 35 9 23 Regions Visited 4 Branch Regions 1 Pre-discovered Areas 1 | . . 1 . . Known Exits Taken 1 | . . . 1 . Unknown Exits Taken 3 | 1 1 1 . . Scrap Searched . | . . . . . Spaces Dug . | . . . . . Terrain Destroyed 6 | . 3 . 3 . Melee . | . . . . . Projectile 3 | . . . 3 . AOE 3 | . 3 . . . Terrain Rammed . | . . . . . Walls Destroyed . | . . . . . Machines Disabled . | . . . . . Actions | -11 -10 -10 -8 -8 --------- Run | Yrd Mat Sub Mat Gar Total 1135 | 103 177 583 177 95 Wait 112 | 7 53 10 41 1 Move 883 | 59 108 528 105 83 Hop . | . . . . . Pick Up 25 | 12 4 6 3 . Fast Attach 3 | 3 . . . . Attach 17 | 4 1 6 4 2 Detach . | . . . . . Swap 6 | 2 2 2 . . Drop 6 | . 4 1 1 . Fire 78 | 16 5 26 23 8 Melee 5 | . . 4 . 1 Ram . | . . . . . Kick . | . . . . . Crush . | . . . . . Escape Stasis . | . . . . . Rewire . | . . . . . Trap . | . . . . . Miscellaneous . | . . . . . Route ------- -11/Scrapyard -10/Materials -10/Subcaves -8/Materials -8/Garrison History --------- Turn | Location | Event 15 | -11/Scrapyard | Discovered new exit (range 14) 166 | -11/Scrapyard | Entered Materials 309 | -10/Materials | Build established: Mutant 369 | -10/Materials | Discovered new exit (range 5) 374 | -10/Materials | Entered Subcaves 375 | -10/Subcaves | Approached by a straggling Scientist 1004 | -10/Subcaves | A swath of the cavern ceiling suddenly collapsed 1021 | -10/Subcaves | Core integrity fell below 50% 1056 | -10/Subcaves | Learned location of Zion (-6) 1057 | -10/Subcaves | Lost 3 parts (2n1w) 1256 | -10/Subcaves | Discovered new exit (range 3) 1261 | -10/Subcaves | Entered Materials 1261 | -8/Materials | Evolved 4 slots: Propulsion x1, Utility x1, Weapon x2 1319 | -8/Materials | Build established: Scavenger-Mutant 1532 | -8/Materials | Identified exit to Garrison 1559 | -8/Materials | Entered Garrison 1689 | -8/Garrison | Triggered checkpoint 1722 | -8/Garrison | Core integrity fell below 50% 1729 | -8/Garrison | Core integrity fell below 20% 1732 | -8/Garrison | Destroyed by H-55 Commando with Gauss Rifle Last Messages --------------- Slug penetrates Wall. Lgt. Treads destroyed. Penetrated by Slug. Garrison Door activated. Lgt. Assault Rifle destroyed. Mak. Power Source destroyed. Penetrated by Slug. Slug penetrates Wall. Penetrated by Slug. Garrison Door activated. Slug penetrates Reinforced Barrier. Mining Claw destroyed. Penetrated by Slug. S-10 Pest destroyed. Penetrated by Slug. S-10 Pest destroyed. Penetrated by Slug. S-10 Pest destroyed. Acquired 4 matter. Penetrated by Slug. Map ----- +----------------------------------------------------+ | ???????????????????????????????##### #????# #?? | | ???????????????????????????????????# ###### #?? | | ???????????????????????????????????# #?? | | ???????????????????????????????????# #?? | | ???????????????????????????????????# ##########?? | | ???????????????????????????????????# #??????????? | | ???????????????????????????????????# #??????????? | | ???????????????????????????????????# #??????????? | | ???????????????????????????????????# #??????????? | | ???????????????????????????????????# #??????????? | | ???????????????????????????????????# #??????????? | | ???????????????????????????????????# #??????????? | | ???????????????????????????????????# #??????????? | | ???????????????????????????????????# #??????????? | | ????????????????????????############ #??????????? | | ????????????????????????# #??????????? | | ????????????????????????# #??????????? | | ????????????????????????# ######### #??????????? | | ????????????????????????# #???????# #??????????? | | ????????????????????????# ##??????# #??????????? | | ????????????????????????# ;???????# ??????????? | | ??????????????????####### #???????# ##?????????? | | ??????????????????# ## #???????# #??????????? | | ?????????????###### ## ##??????# #??????????? | | ?????????????# h = ######?# #??????????? | | ??????? h @* #??????????? | | ??????? =[% #??????????? | | ???????####### ## s##s ###########??????????? | | ?????????????# ??# =%## #????????????????????? | | ???????????? ?? * ???????????????????? | | ???????????# ? #??????????????????? | | ???????????# #??????????????????? | | ???????????#g Y #??????????????????? | | ????????????## ## ## ###??????????????????? | | ?????????????# ?# ## #????????????????????? | | ????????????? ?? #????????????????????? | | ????????????? ?? #????????????????????? | | ????????????????? #????????????????????? | | ??????????????????# ## #????????????????????? | | ???????????????????? ?? #????????????????????? | | ????????????????????????? ?????????????????????? | | ?????????????????????????????????????????????????? | | ?????????????????????????????????????????????????? | | ?????????????????????????????????????????????????? | | ?????????????????????????????????????????????????? | | ?????????????????????????????????????????????????? | | ?????????????????????????????????????????????????? | | ?????????????????????????????????????????????????? | | ?????????????????????????????????????????????????? | | ?????????????????????????????????????????????????? | +----------------------------------------------------+ Best States ------------- Heat Dissipation 31 Energy Generation 15 Energy Capacity 250 Matter Stores 300 Matter Capacity 300 Sight Range 16 Terrain Scan Density 10 Evasion (%) 55 Recoil Reduction 2 Item Schematics ----------------- None Robot Schematics ------------------ None Fabricated ------------ Nothing Repaired ---------- Nothing Alien Tech Used ----------------- None Achievements -------------- None Challenges ------------ None Game ------ Seed GyrokineticHybridChronowheel Manual? 0 Play Time 00:19:37 Cumulative 7.0 hours Start 2025.06.15 @ 20:30:13 End 2025.06.21 @ 14:54:22 Sessions 2 Manual Loads 0 Difficulty Rogue Special Mode None Game No. 12 Rogue 12 Adventurer 0 Explorer 0 Win Type - Total 0 Types 0/0/0/0/0/0/0/0/0/0 Lore% 9 Gallery% 9 Achievement% 10 Wizard Run 0 Options --------- Layout 1 ASCII 0 Keyboard 0 Movement Mouse Keybinds 0 Fullscreen 1 Font 24/Smallcaps Map View 50x35 Zoom Use 0% Tactical HUD 0 Map Filters NONE Filters NONE Steam 1 RUN: c254e19c-4b09-4570-a903-899db52e0fc0